fUSD/lending_fUSD_20240523
["ID","MTS","AMOUNT","RATE_DAILY","PERIOD"]
[327777579,1716474775318,-500.0,0.00022073,2]
[327777580,1716474775341,-500.0,0.00022073,2]
[327777581,1716474775364,-500.0,0.00022074,2]
[327777582,1716474775387,-500.0,0.00022074,2]
[327777583,1716474775411,-500.0,0.00022074,2]
[327777584,1716474775434,-500.0,0.00022074,2]
[327777585,1716474775462,-514.25,0.00022074,2]
[327777586,1716474775488,-2149.17,0.00022074,2]
[327777587,1716474775513,-1849.36,0.00022074,2]
[327777588,1716474775542,-3259.7,0.00022074,2]
[327777589,1716474775566,-2015.25,0.00022074,2]
[327777590,1716474775589,-683.73,0.00022074,2]
[327777591,1716474775614,-845.13,0.00022074,2]
[327777592,1716474775640,-153.12954135,0.00022111,2]
[327777593,1716474775663,-353.3759373,0.00022147,2]
[327777594,1716474775686,-551.19985325,0.00022191,3]
[327777595,1716474775713,-357.16463103,0.00022191,3]
[327777596,1716474775736,-500.0,0.00022191,3]
[327777597,1716474775759,-500.0,0.00022191,3]
[327777598,1716474775783,-500.0,0.00022191,3]
[327777599,1716474775809,-500.0,0.00022191,3]
[327777600,1716474775836,-500.0,0.00022191,3]
[327777601,1716474775862,-500.0,0.00022191,3]
[327777602,1716474775888,-500.0,0.00022191,3]
[327777603,1716474775913,-500.0,0.00022191,3]
[327777604,1716474775935,-500.0,0.00022191,3]
[327777605,1716474775961,-500.0,0.00022191,3]
[327777606,1716474775986,-556.54,0.00022191,3]
[327777607,1716474776009,-500.0,0.00022191,3]
[327777608,1716474776033,-150.97582733,0.00022205,2]
[327777609,1716474776056,-152.73750917,0.00022212,2]
[327777610,1716474776080,-500.0,0.0002226,3]
[327777611,1716474776103,-363.03928167,0.0002226,3]
[327777612,1716474776125,-500.0,0.0002226,3]
[327777613,1716474776148,-543.6504103,0.0002226,3]
[327777614,1716474776171,-500.0,0.0002226,3]
[327777615,1716474776196,-500.0,0.0002226,2]
[327777616,1716474776218,-500.0,0.0002226,3]
[327777617,1716474776240,-500.0,0.0002226,3]
[327777618,1716474776263,-500.0,0.0002226,3]
[327777619,1716474776289,-608.63,0.0002226,3]
[327777620,1716474776312,-500.0,0.0002226,3]
[327777621,1716474776335,-500.0,0.0002226,3]
[327777622,1716474776356,-158.09973998,0.0002226,2]
[327777623,1716474776379,-500.0,0.0002226,3]
[327777624,1716474776405,-642.99,0.0002226,2]
[327777625,1716474776430,-500.0,0.0002226,3]
[327777626,1716474776456,-500.0,0.0002226,2]
[327777627,1716474776479,-618.39413968,0.0002226,3]
[327777628,1716474776503,-422.66215325,0.0002226,3]
[327777629,1716474776527,-2574.87,0.0002226,3]
[327777630,1716474776550,-657.62,0.00022273,3]
[327777631,1716474776573,-500.0,0.00022273,3]
[327777632,1716474776597,-518.86,0.00022273,3]
[327777633,1716474776621,-500.0,0.00022273,3]
[327777634,1716474776645,-500.0,0.00022273,3]
[327777635,1716474776668,-189.02334774,0.00022273,3]
[327777636,1716474776691,-500.0,0.00022273,3]
[327777637,1716474776718,-153.12954135,0.00022277,2]
[327777638,1716474776741,-228.40367144,0.000223,2]
[327777639,1716474776764,-353.3759373,0.00022327,2]
[327777640,1716474776788,-977.39093211,0.0002233,2]
[327777641,1716474776815,-153.12954135,0.00022331,2]
[327777642,1716474776839,-546.33,0.00022347,3]
[327777643,1716474776862,-500.0,0.00022347,3]
[327777644,1716474776886,-205.32251221,0.00022347,3]
[327777645,1716474776910,-500.0,0.00022347,3]
[327777646,1716474776932,-500.0,0.00022347,3]
[327777647,1716474776957,-500.0,0.00022347,3]
[327777648,1716474776980,-500.0,0.00022347,3]
[327777649,1716474777003,-500.0,0.00022347,3]
[327777650,1716474777024,-263.9306957,0.00022347,3]
[327777651,1716474777046,-500.0,0.00022347,3]
[327777652,1716474777069,-500.0,0.00022347,3]
[327777653,1716474777091,-500.0,0.00022347,3]
[327777654,1716474777113,-380.88151594,0.00022347,3]
[327777655,1716474777135,-208.39463163,0.00022347,3]
[327777656,1716474777159,-500.0,0.00022347,3]
[327777657,1716474777181,-572.26146249,0.00022347,3]
[327777658,1716474777208,-500.0,0.00022347,3]
[327777659,1716474777230,-500.0,0.00022347,3]
[327777660,1716474777253,-500.0,0.00022347,3]
[327777661,1716474777277,-1031.44,0.00022347,3]
[327777662,1716474777300,-500.0,0.00022347,3]
[327777663,1716474777323,-500.0,0.00022347,3]
[327777664,1716474777346,-211.57850215,0.00022347,3]
[327777665,1716474777371,-500.0,0.00022347,3]
[327777666,1716474777394,-930.82,0.00022347,3]
[327777667,1716474777417,-864.6,0.00022347,3]
[327777668,1716474777442,-500.0,0.00022347,3]
[327777669,1716474777474,-500.0,0.00022347,3]
[327777670,1716474777497,-500.0,0.00022347,3]
[327777671,1716474777523,-500.0,0.00022347,3]
[327777672,1716474777547,-500.0,0.00022347,3]
[327777673,1716474777570,-500.0,0.00022347,3]
[327777674,1716474777593,-500.02,0.00022347,3]
[327777675,1716474777615,-596.43,0.00022347,3]
[327777676,1716474777638,-500.0,0.00022347,3]
[327777677,1716474777662,-500.0,0.00022347,3]
[327777678,1716474777685,-606.02451174,0.00022347,3]
[327777679,1716474777712,-500.0,0.00022347,3]
[327777680,1716474777735,-500.0,0.00022347,3]
[327777681,1716474777759,-500.0,0.00022348,3]
[327777682,1716474777783,-500.0,0.00022348,3]
[327777683,1716474777810,-500.0,0.00022348,3]
[327777684,1716474777834,-500.0,0.00022348,3]
[327777685,1716474777861,-514.25,0.00022348,3]
[327777686,1716474777885,-2149.17,0.00022348,3]
[327777687,1716474777914,-1849.36,0.00022348,3]
[327777688,1716474777938,-3259.7,0.00022348,3]
[327777689,1716474777962,-2015.25,0.00022348,3]
[327777690,1716474777986,-683.73,0.00022348,3]
[327777691,1716474778008,-845.13,0.00022348,3]
[327777692,1716474778030,-1000.0,0.00022365,2]
[327777693,1716474778052,-7500.0,0.00022365,2]
[327777694,1716474778250,-155.07639621,0.00022372,2]
[327777695,1716474778274,-152.73750917,0.00022373,2]
[327777696,1716474778296,-154.66364069,0.00022424,2]
[327777697,1716474778320,-977.39093211,0.00022437,2]
[327777698,1716474778343,-6772.86623355,0.00022464,2]
[327777699,1716474778366,-500.0,0.00022465,4]
[327777700,1716474778388,-516.00479806,0.00022465,4]
[327777701,1716474778411,-500.0,0.00022465,4]
[327777702,1716474778433,-500.0,0.00022465,4]
[327777703,1716474778458,-500.0,0.00022465,4]
[327777704,1716474778481,-500.0,0.00022465,4]
[327777705,1716474778505,-500.0,0.00022465,4]
[327777706,1716474778528,-500.0,0.00022465,4]
[327777707,1716474778551,-500.0,0.00022465,4]
[327777708,1716474778574,-500.0,0.00022465,4]
[327777709,1716474778596,-556.54,0.00022465,4]
[327777710,1716474778619,-500.0,0.00022465,4]
[327777711,1716474778641,-353.3759373,0.0002247,2]
[327777712,1716474778664,-154.66364069,0.00022476,2]
[327777713,1716474778686,-166.66666668,0.00022491,2]
[327777714,1716474778709,-500.0,0.00022499,2]
[327777715,1716474778732,-880.65,0.00022499,2]
[327777716,1716474778755,-500.0,0.00022499,2]
[327777717,1716474778783,-762.03,0.00022499,2]
[327777718,1716474778808,-2926.11,0.00022499,2]
[327777719,1716474778836,-5464.19,0.00022499,2]
[327777720,1716474778861,-150.97582733,0.00022517,2]
[327777721,1716474778885,-500.0,0.00022534,4]
[327777722,1716474778912,-500.0,0.00022534,4]
[327777723,1716474778936,-192.32021133,0.00022534,4]
[327777724,1716474778959,-500.0,0.00022534,2]
[327777725,1716474778982,-500.0,0.00022534,4]
[327777726,1716474779005,-500.0,0.00022534,4]
[327777727,1716474779029,-500.0,0.00022534,4]
[327777728,1716474779053,-608.63,0.00022534,4]
[327777729,1716474779077,-500.0,0.00022534,4]
[327777730,1716474779105,-500.0,0.00022534,4]
[327777731,1716474779128,-500.0,0.00022534,4]
[327777732,1716474779150,-642.99,0.00022534,2]
[327777733,1716474779173,-500.0,0.00022534,4]
[327777734,1716474779194,-500.0,0.00022534,2]
[327777735,1716474779219,-2574.87,0.00022534,4]
[327777736,1716474779245,-154.66364069,0.00022536,2]
[327777737,1716474779268,-657.62,0.00022547,4]
[327777738,1716474779294,-500.0,0.00022547,4]
[327777739,1716474779320,-518.86,0.00022547,4]
[327777740,1716474779342,-500.0,0.00022547,4]
[327777741,1716474779365,-500.0,0.00022547,4]
[327777742,1716474779389,-500.0,0.00022547,4]
[327777743,1716474779412,-167.99941387,0.00022561,2]
[327777744,1716474779436,-353.3759373,0.00022568,2]
[327777745,1716474779461,-546.33,0.00022621,4]
[327777746,1716474779484,-500.0,0.00022621,4]
[327777747,1716474779507,-500.0,0.00022621,4]
[327777748,1716474779530,-500.0,0.00022621,4]
[327777749,1716474779553,-500.0,0.00022621,4]
[327777750,1716474779574,-614.67743074,0.00022621,4]
[327777751,1716474779598,-500.0,0.00022621,4]
[327777752,1716474779621,-500.0,0.00022621,4]
[327777753,1716474779645,-500.0,0.00022621,4]
[327777754,1716474779668,-500.0,0.00022621,4]
[327777755,1716474779690,-500.0,0.00022621,4]
[327777756,1716474779715,-479.50263706,0.00022621,4]
[327777757,1716474779738,-500.0,0.00022621,4]
[327777758,1716474779762,-500.0,0.00022621,4]
[327777759,1716474779786,-1031.44,0.00022621,4]
[327777760,1716474779812,-500.0,0.00022621,4]
[327777761,1716474779834,-500.0,0.00022621,4]
[327777762,1716474779858,-500.0,0.00022621,4]
[327777763,1716474779882,-930.82,0.00022621,4]
[327777764,1716474779904,-864.6,0.00022621,4]
[327777765,1716474779928,-500.0,0.00022621,4]
[327777766,1716474779952,-500.0,0.00022621,4]
[327777767,1716474779975,-500.0,0.00022621,4]
[327777768,1716474780000,-500.0,0.00022621,4]
[327777769,1716474780024,-500.0,0.00022621,4]
[327777770,1716474780048,-500.0,0.00022621,4]
[327777771,1716474780072,-500.02,0.00022621,4]
[327777772,1716474780095,-596.43,0.00022621,4]
[327777773,1716474780118,-500.0,0.00022621,4]
[327777774,1716474780142,-500.0,0.00022621,4]
[327777775,1716474780169,-500.0,0.00022621,4]
[327777776,1716474780197,-500.0,0.00022622,4]
[327777777,1716474780228,-500.0,0.00022622,4]
[327777778,1716474780252,-500.0,0.00022622,4]
[327777779,1716474780276,-500.0,0.00022622,4]
[327777780,1716474780301,-514.25,0.00022622,4]
[327777781,1716474780324,-2149.17,0.00022622,4]
[327777782,1716474780350,-1849.36,0.00022622,4]
[327777783,1716474780374,-3259.7,0.00022622,4]
[327777784,1716474780397,-2015.25,0.00022622,4]
[327777785,1716474780421,-683.73,0.00022622,4]
[327777786,1716474780444,-845.13,0.00022622,4]
[327777787,1716474780472,-150.97582733,0.00022682,2]
[327777788,1716474780496,-500.0,0.00022739,5]
[327777789,1716474780520,-500.0,0.00022739,5]
[327777790,1716474780543,-500.0,0.00022739,5]
[327777791,1716474780565,-500.0,0.00022739,5]
[327777792,1716474780588,-500.0,0.00022739,5]
[327777793,1716474780611,-500.0,0.00022739,5]
[327777794,1716474780633,-500.0,0.00022739,5]
[327777795,1716474780656,-500.0,0.00022739,5]
[327777796,1716474780679,-500.0,0.00022739,5]
[327777797,1716474780703,-556.54,0.00022739,5]
[327777798,1716474780726,-500.0,0.00022739,5]
[327777799,1716474780748,-154.66364069,0.00022758,2]
[327777800,1716474780772,-500.0,0.00022773,3]
[327777801,1716474780797,-880.65,0.00022773,3]
[327777802,1716474780821,-500.0,0.00022773,3]
[327777803,1716474780846,-762.03,0.00022773,3]
[327777804,1716474780870,-2926.11,0.00022773,3]
[327777805,1716474780896,-5464.19,0.00022773,3]
[327777806,1716474780919,-153.12954135,0.00022783,2]
[327777807,1716474780942,-312.65850153,0.00022808,5]
[327777808,1716474780970,-500.0,0.00022808,5]
[327777809,1716474780992,-500.0,0.00022808,2]
[327777810,1716474781015,-607.35756324,0.00022808,5]
[327777811,1716474781038,-500.0,0.00022808,5]
[327777812,1716474781061,-500.0,0.00022808,5]
[327777813,1716474781084,-608.63,0.00022808,5]
[327777814,1716474781107,-357.75619463,0.00022808,5]
[327777815,1716474781130,-500.0,0.00022808,5]
[327777816,1716474781153,-207.91565189,0.00022808,5]
[327777817,1716474781176,-642.99,0.00022808,2]
[327777818,1716474781204,-500.0,0.00022808,5]
[327777819,1716474781226,-500.0,0.00022808,2]
[327777820,1716474781249,-2574.87,0.00022808,5]
[327777821,1716474781272,-628.07966112,0.00022819,2]
[327777822,1716474781296,-657.62,0.00022821,5]
[327777823,1716474781319,-500.0,0.00022821,5]
[327777824,1716474781342,-518.86,0.00022821,5]
[327777825,1716474781365,-500.0,0.00022821,5]
[327777826,1716474781387,-500.0,0.00022821,5]
[327777827,1716474781415,-500.0,0.00022821,5]
[327777828,1716474781438,-166.66666668,0.00022842,2]
[327777829,1716474781465,-546.33,0.00022895,5]
[327777830,1716474781488,-207.45919939,0.00022895,2]
[327777831,1716474781512,-359.56519278,0.00022895,5]
[327777832,1716474781537,-516.01688844,0.00022895,5]
[327777833,1716474781560,-500.0,0.00022895,5]
[327777834,1716474781582,-500.0,0.00022895,5]
[327777835,1716474781607,-500.0,0.00022895,5]
[327777836,1716474781630,-500.0,0.00022895,5]
[327777837,1716474781654,-500.0,0.00022895,5]
[327777838,1716474781677,-500.0,0.00022895,5]
[327777839,1716474781704,-500.0,0.00022895,5]
[327777840,1716474781727,-194.52581657,0.00022895,5]
[327777841,1716474781750,-500.0,0.00022895,5]
[327777842,1716474781950,-1031.44,0.00022895,5]
[327777844,1716474781974,-310.74153299,0.00022895,5]
[327777845,1716474781996,-500.0,0.00022895,5]
[327777846,1716474782019,-500.0,0.00022895,5]
[327777847,1716474782042,-930.82,0.00022895,5]
[327777848,1716474782065,-864.6,0.00022895,5]
[327777849,1716474782088,-500.0,0.00022895,5]
[327777850,1716474782111,-500.0,0.00022895,5]
[327777851,1716474782133,-500.0,0.00022895,5]
[327777852,1716474782156,-500.0,0.00022895,5]
[327777853,1716474782179,-630.24977973,0.00022895,5]
[327777854,1716474782206,-500.0,0.00022895,5]
[327777855,1716474782229,-500.02,0.00022895,5]
[327777856,1716474782256,-596.43,0.00022895,5]
[327777857,1716474782279,-500.0,0.00022895,5]
[327777858,1716474782303,-500.0,0.00022895,5]
[327777859,1716474782327,-500.0,0.00022895,5]
[327777860,1716474782350,-500.0,0.00022896,5]
[327777861,1716474782375,-500.0,0.00022896,5]
[327777862,1716474782399,-242.94698413,0.00022896,5]
[327777863,1716474782423,-388.36170213,0.00022896,5]
[327777864,1716474782447,-514.25,0.00022896,5]
[327777865,1716474782481,-2149.17,0.00022896,5]
[327777866,1716474782507,-1849.36,0.00022896,5]
[327777867,1716474782533,-3259.7,0.00022896,5]
[327777868,1716474782560,-2015.25,0.00022896,5]
[327777869,1716474782586,-683.73,0.00022896,5]
[327777870,1716474782612,-845.13,0.00022896,5]
[327777871,1716474782637,-520.94366757,0.00022897,2]
[327777872,1716474782662,-500.0,0.00022897,2]
[327777873,1716474782685,-500.0,0.00022897,2]
[327777874,1716474782720,-1730.38,0.00022897,2]
[327777875,1716474782744,-537.07,0.00022897,2]
[327777876,1716474782769,-500.0,0.00022897,2]
[327777877,1716474782793,-500.0,0.00022897,2]
[327777878,1716474782829,-500.0,0.00022897,2]
[327777879,1716474782853,-3200.06,0.00022897,2]
[327777880,1716474782878,-500.0,0.00022897,2]
[327777881,1716474782903,-770.97,0.00022897,2]
[327777882,1716474782929,-500.0,0.00022897,2]
[327777883,1716474782959,-622.8,0.00022897,2]
[327777884,1716474782983,-500.0,0.00022897,2]
[327777885,1716474783007,-500.0,0.00022897,2]
[327777886,1716474783031,-500.0,0.00022897,2]
[327777887,1716474783054,-343.97776779,0.00022897,2]
[327777888,1716474783076,-500.0,0.00022897,2]
[327777889,1716474783099,-627.32,0.00022897,2]
[327777890,1716474783122,-699.03,0.00022897,2]
[327777891,1716474783146,-500.0,0.00022897,2]
[327777892,1716474783170,-419.94027421,0.00022897,2]
[327777893,1716474783194,-500.0,0.00022897,2]
[327777894,1716474783223,-1069.0,0.00022897,2]
[327777895,1716474783246,-505.64242332,0.00022897,2]
[327777896,1716474783269,-568.41967209,0.00022897,2]
[327777897,1716474783293,-2235.12,0.00022897,2]
[327777898,1716474783322,-500.0,0.00022897,2]
[327777899,1716474783353,-507.27183072,0.00022897,2]
[327777900,1716474783381,-644.86,0.00022897,2]
[327777901,1716474783406,-653.86,0.00022897,2]
[327777902,1716474783430,-417.56413683,0.00022897,2]
[327777903,1716474783462,-500.0,0.00022897,2]
[327777904,1716474783491,-500.0,0.00022897,2]
[327777905,1716474783516,-977.39093211,0.00022912,2]
[327777906,1716474783540,-166.0,0.00022913,2]
[327777907,1716474783564,-153.55433201,0.00022983,2]
[327777908,1716474783588,-195.05358506,0.00022993,2]
[327777909,1716474783611,-505.73423505,0.00022994,2]
[327777910,1716474783635,-2512.02227982,0.00022994,2]
[327777911,1716474783659,-200.00544757,0.00023,2]
[327777912,1716474783683,-500.0,0.00023013,6]
[327777913,1716474783712,-428.16395842,0.00023013,6]
[327777914,1716474783736,-497.08742916,0.00023013,6]
[327777915,1716474783759,-500.0,0.00023013,6]
[327777916,1716474783784,-500.0,0.00023013,6]
[327777917,1716474783819,-500.0,0.00023013,6]
[327777918,1716474783845,-500.0,0.00023013,6]
[327777919,1716474783869,-500.0,0.00023013,6]
[327777920,1716474783893,-500.0,0.00023013,6]
[327777921,1716474783916,-500.0,0.00023013,6]
[327777922,1716474783940,-556.54,0.00023013,6]
[327777923,1716474783968,-153.12954135,0.00023039,2]
[327777924,1716474783992,-153.55433201,0.00023043,2]
[327777925,1716474784014,-500.0,0.00023047,4]
[327777926,1716474784038,-880.65,0.00023047,4]
[327777927,1716474784062,-500.0,0.00023047,4]
[327777928,1716474784087,-762.03,0.00023047,4]
[327777929,1716474784110,-2926.11,0.00023047,4]
[327777930,1716474784134,-5464.19,0.00023047,4]
[327777931,1716474784158,-977.39093211,0.00023064,2]
[327777932,1716474784182,-166.6666667,0.00023072,2]
[327777933,1716474784210,-490.06093452,0.00023082,6]
[327777934,1716474784233,-500.0,0.00023082,2]
[327777935,1716474784257,-500.0,0.00023082,6]
[327777936,1716474784280,-500.0,0.00023082,6]
[327777937,1716474784302,-608.63,0.00023082,6]
[327777938,1716474784326,-500.0,0.00023082,6]
[327777939,1716474784349,-642.99,0.00023082,2]
[327777940,1716474784373,-500.0,0.00023082,6]
[327777941,1716474784396,-500.0,0.00023082,2]
[327777942,1716474784420,-2574.87,0.00023082,6]
[327777943,1716474784445,-657.62,0.00023095,6]
[327777944,1716474784473,-500.0,0.00023095,6]
[327777945,1716474784496,-518.86,0.00023095,6]
[327777946,1716474784519,-500.0,0.00023095,6]
[327777947,1716474784545,-500.0,0.00023095,6]
[327777948,1716474784569,-500.0,0.00023095,6]
[327777949,1716474784591,-166.66666668,0.00023112,2]
[327777950,1716474784614,-800.0,0.00023151,2]
[327777951,1716474784638,-150.87239784,0.00023161,2]
[327777952,1716474784664,-546.33,0.00023169,6]
[327777953,1716474784689,-500.0,0.00023169,6]
[327777954,1716474784716,-500.0,0.00023169,6]
[327777955,1716474784741,-500.0,0.00023169,6]
[327777956,1716474784765,-500.0,0.00023169,6]
[327777957,1716474784789,-500.0,0.00023169,6]
[327777958,1716474784819,-500.0,0.00023169,6]
[327777959,1716474784843,-500.0,0.00023169,6]
[327777960,1716474784866,-500.0,0.00023169,6]
[327777961,1716474784892,-1031.44,0.00023169,6]
[327777962,1716474784915,-500.0,0.00023169,6]
[327777963,1716474784939,-500.0,0.00023169,6]
[327777964,1716474784965,-930.82,0.00023169,6]
[327777965,1716474784989,-864.6,0.00023169,6]
[327777966,1716474785014,-500.0,0.00023169,6]
[327777967,1716474785039,-500.0,0.00023169,6]
[327777968,1716474785062,-500.0,0.00023169,6]
[327777969,1716474785086,-500.0,0.00023169,6]
[327777970,1716474785111,-500.0,0.00023169,6]
[327777971,1716474785134,-500.02,0.00023169,6]
[327777972,1716474785158,-596.43,0.00023169,6]
[327777973,1716474785182,-500.0,0.00023169,6]
[327777974,1716474785209,-500.0,0.00023169,6]
[327777975,1716474785233,-500.0,0.00023169,6]
[327777976,1716474785257,-500.0,0.0002317,6]
[327777977,1716474785283,-500.0,0.0002317,6]
[327777978,1716474785306,-514.25,0.0002317,6]
[327777979,1716474785331,-2149.17,0.0002317,6]
[327777980,1716474785355,-1849.36,0.0002317,6]
[327777981,1716474785380,-3259.7,0.0002317,6]
[327777982,1716474785406,-2015.25,0.0002317,6]
[327777983,1716474785430,-683.73,0.0002317,6]
[327777984,1716474785457,-845.13,0.0002317,6]
[327777985,1716474785481,-497.2623618,0.00023171,3]
[327777986,1716474785507,-500.0,0.00023171,3]
[327777987,1716474785532,-1730.38,0.00023171,3]
[327777988,1716474785555,-537.07,0.00023171,3]
[327777989,1716474785579,-500.0,0.00023171,3]
[327777990,1716474785603,-500.0,0.00023171,3]
[327777991,1716474785627,-500.0,0.00023171,3]
[327777992,1716474785790,-3200.06,0.00023171,3]
[327777993,1716474785856,-500.0,0.00023171,3]
[327777994,1716474785881,-770.97,0.00023171,3]
[327777995,1716474785906,-500.0,0.00023171,3]
[327777996,1716474785932,-622.8,0.00023171,3]
[327777997,1716474785958,-500.0,0.00023171,3]
[327777998,1716474785984,-500.0,0.00023171,3]
[327777999,1716474786009,-500.0,0.00023171,3]
[327778000,1716474786037,-500.0,0.00023171,3]
[327778001,1716474786061,-627.32,0.00023171,3]
[327778002,1716474786086,-699.03,0.00023171,3]
[327778003,1716474786108,-577.51684287,0.00023171,3]
[327778004,1716474786131,-519.23890195,0.00023171,3]
[327778005,1716474786158,-1069.0,0.00023171,3]
[327778006,1716474786182,-2235.12,0.00023171,3]
[327778007,1716474786208,-500.0,0.00023171,3]
[327778008,1716474786231,-644.86,0.00023171,3]
[327778009,1716474786254,-653.86,0.00023171,3]
[327778011,1716474786277,-500.0,0.00023171,3]
[327778012,1716474786301,-500.0,0.00023171,3]
[327778013,1716474786324,-152.73750917,0.00023202,2]
[327778014,1716474786349,-353.3759373,0.00023246,2]
[327778015,1716474786373,-150.97582733,0.00023256,2]
[327778016,1716474786396,-500.0,0.00023287,7]
[327778017,1716474786419,-500.0,0.00023287,7]
[327778018,1716474786442,-410.93632568,0.00023287,7]
[327778019,1716474786470,-500.0,0.00023287,7]
[327778020,1716474786494,-500.0,0.00023287,7]
[327778021,1716474786517,-500.0,0.00023287,7]
[327778022,1716474786541,-500.0,0.00023287,7]
[327778023,1716474786565,-500.0,0.00023287,7]
[327778024,1716474786588,-556.54,0.00023287,7]
[327778025,1716474786611,-500.0,0.00023321,5]
[327778026,1716474786636,-880.65,0.00023321,5]
[327778027,1716474786659,-500.0,0.00023321,5]
[327778028,1716474786683,-762.03,0.00023321,5]
[327778029,1716474786709,-2926.11,0.00023321,5]
[327778030,1716474786734,-5464.19,0.00023321,5]
[327778031,1716474786757,-166.66666666,0.00023332,2]
[327778032,1716474786782,-353.3759373,0.00023333,2]
[327778033,1716474786808,-323.27907359,0.00023345,2]
[327778034,1716474786831,-637.51335997,0.00023356,2]
[327778035,1716474786855,-500.0,0.00023356,7]
[327778036,1716474786878,-500.0,0.00023356,7]
[327778037,1716474786903,-608.63,0.00023356,7]
[327778038,1716474786929,-500.0,0.00023356,7]
[327778039,1716474786954,-642.99,0.00023356,2]
[327778040,1716474786978,-500.0,0.00023356,2]
[327778041,1716474787003,-2574.87,0.00023356,7]
[327778042,1716474787027,-657.62,0.00023369,7]
[327778043,1716474787052,-500.0,0.00023369,7]
[327778044,1716474787074,-518.86,0.00023369,7]
[327778045,1716474787097,-500.0,0.00023369,7]
[327778046,1716474787120,-500.0,0.00023369,7]
[327778047,1716474787142,-500.0,0.00023369,7]
[327778048,1716474787165,-154.03762695,0.00023385,2]
[327778049,1716474787189,-2005.18444528,0.000234,2]
[327778050,1716474787217,-154.03762695,0.00023402,2]
[327778051,1716474787242,-546.33,0.00023443,7]
[327778052,1716474787267,-621.22758809,0.00023443,7]
[327778053,1716474787290,-500.0,0.00023443,7]
[327778054,1716474787313,-500.0,0.00023443,7]
[327778055,1716474787337,-346.69314244,0.00023443,7]
[327778056,1716474787361,-232.3072451,0.00023443,7]
[327778057,1716474787384,-500.0,0.00023443,7]
[327778058,1716474787409,-500.0,0.00023443,7]
[327778059,1716474787433,-500.0,0.00023443,7]
[327778060,1716474787460,-1031.44,0.00023443,7]
[327778062,1716474787484,-500.0,0.00023443,7]
[327778063,1716474787508,-500.0,0.00023443,7]
[327778064,1716474787532,-930.82,0.00023443,7]
[327778065,1716474787558,-864.6,0.00023443,7]
[327778066,1716474787583,-500.0,0.00023443,7]
[327778067,1716474787607,-500.0,0.00023443,7]
[327778068,1716474787630,-500.0,0.00023443,7]
[327778069,1716474787654,-500.0,0.00023443,7]
[327778070,1716474787678,-500.0,0.00023443,7]
[327778071,1716474787702,-500.02,0.00023443,7]
[327778072,1716474787728,-596.43,0.00023443,7]
[327778073,1716474787752,-500.0,0.00023443,7]
[327778074,1716474787779,-500.0,0.00023443,7]
[327778075,1716474787803,-500.0,0.00023443,7]
[327778076,1716474787830,-500.0,0.00023444,7]
[327778077,1716474787855,-500.0,0.00023444,7]
[327778078,1716474787879,-514.25,0.00023444,7]
[327778079,1716474787906,-2149.17,0.00023444,7]
[327778080,1716474787930,-1849.36,0.00023444,7]
[327778081,1716474787956,-3259.7,0.00023444,7]